bitfinex/quotes_ETHUSD_20250602
["timestamp","ask_amount","ask_price","bid_price","bid_amount"]
[1748873145464,10.29966475,2507.4,2507.1,1.471]
[1748873145665,0.02,2507.9,2507.2,4.741]
[1748873145889,10.29966475,2507.8,2507.2,4.741]
[1748873146193,0.02,2507.9,2507.7,3.98771782]
[1748873146396,0.02,2507.9,2507.8,3.98755881]
[1748873149322,0.02,2507.9,2507.8,4.02742794]
[1748873149467,0.02,2507.9,2507.8,13.37712794]
[1748873149664,0.02,2507.9,2507.8,17.51125881]
[1748873151008,0.02,2507.9,2507.8,8.70755881]
[1748873151196,0.02,2507.9,2507.8,6.19]
[1748873151523,10.31966475,2507.9,2507.1,3.98863086]
[1748873151818,11.3714763,2507.8,2507.1,4.721]
[1748873152111,11.33163122,2507.8,2507.0,0.7997]
[1748873152280,10.29966475,2507.5,2507.2,3.98843186]
[1748873152486,10.29966475,2507.5,2507.1,4.72]
[1748873152808,10.29966475,2507.5,2507.2,4.719]
[1748873153021,3.98865838,2507.2,2506.9,1.471]
[1748873153201,11.40993123,2507.5,2506.5,4.721]
[1748873153202,10.29966475,2507.0,2506.5,4.721]
[1748873153382,10.29966475,2506.7,2506.3,1.454]
[1748873153711,11.10266475,2507.0,2506.6,3.9893866]
[1748873153894,0.03984508,2506.9,2506.5,3.98951998]
[1748873154081,1.55297607,2506.9,2506.5,4.721]
[1748873154408,10.29966475,2507.3,2506.5,4.721]
[1748873154607,0.03984508,2507.2,2507.0,3.98870153]
[1748873154781,0.03984508,2507.2,2506.9,4.72]
[1748873155186,0.03984508,2507.2,2506.9,8.70898933]
[1748873155388,10.29966475,2507.0,2506.3,1.454]
[1748873155598,10.29966475,2506.7,2506.5,3.98953571]
[1748873156114,1.42883475,2506.9,2506.6,3.9894678]
[1748873156419,0.03984508,2506.8,2506.4,8.70772171]
[1748873156615,0.03984508,2506.8,2506.6,3.98939143]
[1748873156822,0.03984508,2506.8,2506.5,3.98955341]
[1748873157221,0.03984508,2506.9,2506.5,3.98959032]
[1748873157393,10.29966475,2506.7,2505.4,3.99137289]
[1748873157594,0.03984508,2506.6,2506.2,3.99003062]
[1748873157794,10.29966475,2507.0,2506.1,4.71]
[1748873157984,0.03984508,2506.9,2506.1,8.70025764]
[1748873158184,0.03984508,2506.9,2506.5,3.98948632]
[1748873158385,1.12067824,2506.9,2506.6,8.69944291]
[1748873158621,1.12067824,2506.9,2506.6,4.71]
[1748873159000,1.12067824,2506.9,2506.6,8.69946705]
[1748873159400,1.12067824,2506.9,2506.6,8.69930939]
[1748873159606,1.12067824,2506.9,2506.4,3.98967996]
[1748873159821,14.28898282,2506.7,2506.3,1.454]
[1748873160016,10.29966475,2506.4,2506.3,1.454]
[1748873160202,14.28945089,2506.4,2506.3,1.454]
[1748873161029,10.29966475,2506.4,2506.3,1.454]
[1748873161337,12.80749321,2506.9,2506.4,3.98967381]
[1748873161487,10.29966475,2506.7,2506.3,1.454]
[1748873161696,8.8184,2506.9,2506.6,3.9894678]
[1748873162000,0.03984508,2506.8,2506.6,3.98938567]
[1748873162206,0.03984508,2506.8,2506.5,3.98956837]
[1748873162421,10.29966475,2506.7,2506.4,8.68669991]
[1748873162609,10.29966475,2506.7,2506.5,3.98962276]
[1748873162812,10.29966475,2506.7,2506.3,1.454]
[1748873162813,0.03984508,2506.6,2506.3,1.454]
[1748873163122,10.29966475,2506.4,2506.3,1.454]
[1748873163324,0.8184,2506.9,2506.3,1.454]
[1748873163626,0.8184,2506.9,2506.8,3.98914951]
[1748873163787,10.29966475,2507.4,2506.7,8.72318533]
[1748873163993,10.31966475,2507.9,2507.4,3.98819494]
[1748873164225,0.02,2507.9,2507.8,3.98755881]
[1748873164523,0.02,2507.9,2507.5,4.696]
[1748873164728,10.29966475,2507.8,2507.5,4.696]
[1748873165026,1.47055901,2507.7,2507.5,4.696]
[1748873165523,0.02,2507.9,2507.7,3.9876457]
[1748873165728,0.02,2507.9,2507.8,8.67955881]
[1748873167024,0.02,2507.9,2507.8,3.98755881]
[1748873167226,0.02,2507.9,2507.8,4.699]
[1748873167402,0.02,2507.9,2507.8,8.68655881]
[1748873167720,0.05984508,2507.9,2507.5,1.454]
[1748873167934,0.05984508,2507.9,2507.8,8.68655881]
[1748873167935,0.02,2507.9,2507.8,8.68655881]
[1748873168688,0.02,2507.9,2507.8,9.49665881]
[1748873169534,10.31966475,2507.9,2507.2,5.44241186]
[1748873169742,10.29966475,2507.6,2507.2,1.454]
[1748873170036,0.03984508,2507.5,2507.2,1.454]
[1748873170238,0.03984508,2507.5,2507.2,6.153]
[1748873170561,4.00748316,2507.9,2507.2,6.153]
[1748873170562,10.31966475,2507.9,2507.2,6.153]
[1748873170760,0.03984508,2507.8,2507.7,3.98763244]
[1748873170915,0.02,2507.9,2507.8,3.98755881]
[1748873172748,0.02,2507.9,2507.8,4.79333032]
[1748873173145,0.02,2507.9,2507.8,13.34333032]
[1748873173334,0.02,2507.9,2507.8,13.30345881]
[1748873174006,0.02,2507.9,2507.8,12.75345881]
[1748873174213,0.02,2507.9,2507.8,17.44145881]
[1748873174545,0.02,2507.9,2507.8,18.89345881]
[1748873175042,0.02,2507.9,2507.8,19.44345881]
[1748873175209,0.02,2507.9,2507.8,18.89345881]
[1748873175411,0.02,2507.9,2507.8,12.75345881]
[1748873175628,0.02,2507.9,2507.8,19.43945881]
[1748873176286,0.02,2507.9,2507.8,11.98755881]
[1748873176593,0.02,2507.9,2507.7,1.454]
[1748873176724,0.02,2507.9,2507.8,8.68155881]
[1748873177127,0.02,2507.9,2507.8,10.04335881]
[1748873177331,0.02,2507.9,2507.8,18.04335881]
[1748873178257,0.02,2507.9,2507.8,13.34935881]
[1748873178583,0.02,2507.9,2507.8,6.25335881]
[1748873178803,0.02,2507.9,2507.8,10.94035881]
[1748873179090,0.02,2507.9,2507.8,5.44155881]
[1748873179547,0.02,2507.9,2507.8,6.138]
[1748873179749,0.02,2507.9,2507.8,1.454]
[1748873179953,1.49054586,2507.9,2507.6,8.67081049]
[1748873180146,0.02,2507.9,2507.6,8.67079151]
[1748873180341,10.29966475,2507.7,2507.6,4.683]
[1748873180557,0.02,2507.9,2507.4,4.687]
[1748873180745,0.02,2507.9,2507.8,3.98755881]
[1748873180945,0.02,2507.9,2507.4,4.687]
[1748873181142,0.02,2507.9,2507.8,3.98755881]
[1748873181366,0.02,2507.9,2507.8,4.686]
[1748873181574,0.02,2507.9,2507.8,8.67355881]
[1748873181870,0.02,2507.9,2507.8,4.686]
[1748873182073,0.02,2507.9,2507.8,8.67355881]
[1748873182573,0.02,2507.9,2507.8,4.686]
[1748873182784,11.16560983,2507.9,2507.8,4.681]
[1748873183078,11.12576475,2507.9,2507.7,4.681]
[1748873183283,11.12576475,2507.9,2507.3,3.98828208]
[1748873183284,0.03984508,2507.8,2507.3,3.98828208]
[1748873183571,0.03984508,2507.8,2507.1,1.454]
[1748873183572,10.29966475,2507.6,2507.1,1.454]
[1748873183757,0.03984508,2507.5,2507.3,4.679]
[1748873184071,0.03984508,2507.5,2507.3,3.98825898]
[1748873184274,0.03984508,2507.5,2507.2,4.678]
[1748873184777,10.29966475,2507.3,2507.1,1.454]
[1748873184981,4.02835816,2507.2,2507.1,1.454]
[1748873185591,3.98883979,2507.0,2506.7,4.675]
[1748873185784,0.03984508,2506.9,2506.7,8.66428861]
[1748873185991,0.03984508,2506.9,2506.5,3.9895688]
[1748873185992,0.7601,2506.8,2506.5,4.673]
[1748873186190,10.33950983,2506.7,2506.5,4.673]
[1748873186517,10.29966475,2506.7,2506.6,3.9894678]
[1748873186710,10.29966475,2507.0,2506.6,3.9894134]
[1748873186861,10.29966475,2507.0,2506.7,3.98918683]
[1748873187062,0.03984508,2506.9,2506.8,4.671]
[1748873187359,0.7601,2507.2,2506.8,4.671]
[1748873187561,0.7601,2507.2,2506.8,3.9890765]
[1748873187801,10.29966475,2507.0,2506.9,4.669]
[1748873188002,10.29966475,2507.0,2506.7,1.429]
[1748873188186,10.29966475,2507.0,2506.8,4.67]
[1748873188383,0.7601,2507.2,2506.9,3.98899038]
[1748873188561,10.29966475,2507.0,2506.8,4.67]
[1748873189062,0.7601,2507.2,2507.0,3.98883127]
[1748873189270,0.03984508,2507.3,2507.1,3.9885505]
[1748873189465,0.7601,2507.5,2507.2,4.668]
[1748873189678,0.7601,2507.8,2507.2,8.65645589]
[1748873189884,10.29966475,2507.6,2507.2,4.668]
[1748873190079,0.03984508,2507.5,2507.2,4.668]
[1748873190285,0.03984508,2507.5,2507.3,3.98828075]
[1748873190485,0.03984508,2507.5,2506.7,10.1804]
[1748873190804,0.03984508,2507.5,2506.7,1.429]
[1748873190805,0.7601,2507.2,2506.7,1.429]
[1748873191004,0.79994508,2507.2,2506.8,4.666]
[1748873191212,1.90990606,2507.2,2506.9,3.98885954]
[1748873191372,0.7601,2507.2,2507.1,3.98867217]
[1748873191567,3.98804037,2507.5,2507.0,3.98869548]
[1748873191772,10.29966475,2507.3,2507.0,3.98869548]
[1748873191999,11.05976475,2507.6,2506.8,4.666]
[1748873192165,0.03984508,2507.5,2507.0,3.98868488]
[1748873192369,0.03984508,2507.5,2507.1,3.98866053]
[1748873192701,0.03984508,2507.5,2507.2,4.674]
[1748873193078,0.806,2507.9,2507.3,0.03988361]
[1748873193413,0.02,2507.9,2507.8,4.73975881]
[1748873193607,0.02,2507.9,2507.8,19.43562236]
[1748873193810,0.02,2507.9,2507.8,19.39575881]
[1748873194575,0.02,2507.9,2507.8,19.80410357]
[1748873194910,0.02,2508.9,2508.8,4.78586938]
[1748873195212,0.02,2508.9,2508.8,10.89186938]
[1748873195706,0.02,2508.9,2508.8,19.44186938]
[1748873196825,0.02,2508.9,2508.8,12.78586938]
[1748873197010,0.02,2508.9,2508.8,18.88086938]
[1748873197685,0.02,2508.9,2508.8,19.43086938]
[1748873199012,0.02,2508.9,2508.8,29.73053413]
[1748873199184,0.02,2509.9,2508.8,38.34153413]
[1748873199389,0.02,2509.9,2509.8,5.29918122]
[1748873199709,0.02,2509.9,2509.8,11.39418122]
[1748873200075,0.02,2509.9,2509.8,19.39418122]
[1748873201457,0.02,2510.9,2509.8,19.39418122]
[1748873201630,0.02,2510.9,2510.8,3.98279432]
[1748873201956,0.02,2510.9,2510.8,10.65861343]
[1748873202156,0.02,2510.9,2510.8,18.61879432]
[1748873203213,0.02,2510.9,2510.8,19.43249432]
[1748873203517,0.02,2510.9,2510.8,13.34649432]
[1748873203751,3.98279432,2510.8,2510.7,1.428]
[1748873204073,3.98304938,2510.7,2510.0,1.428]
[1748873204231,4.02303903,2510.6,2509.9,4.658]
[1748873204436,10.29966475,2510.3,2510.0,3.98399037]
[1748873204631,10.29966475,2510.6,2510.2,3.98361273]
[1748873204943,14.2832723,2510.3,2509.8,3.98429169]
[1748873205242,10.29966475,2510.0,2509.7,4.661]
[1748873205425,0.03984508,2509.9,2509.6,5.41262242]
[1748873205624,15.06402086,2510.2,2509.7,3.98442269]
[1748873205947,15.06402086,2510.2,2509.0,9.3796]
[1748873205948,10.29966475,2509.9,2509.0,9.3796]
[1748873206156,10.29966475,2509.9,2509.7,3.98452991]
[1748873206325,11.32963122,2509.9,2509.5,3.98479608]
[1748873206668,0.03984508,2509.8,2509.0,8.607]
[1748873206839,10.29966475,2509.6,2509.1,6.095]
[1748873207022,10.29966475,2509.6,2509.2,3.98524348]
[1748873207217,10.29966475,2509.6,2509.1,10.08043765]
[1748873207550,10.29966475,2509.6,2509.4,3.98489363]
[1748873207712,10.29966475,2509.6,2509.5,3.98485754]
[1748873207917,10.29966475,2509.6,2509.2,3.98525151]
[1748873208120,0.8002,2509.2,2508.1,2.2245]
[1748873208323,10.29966475,2508.6,2508.3,3.98664747]
[1748873208545,10.29966475,2508.6,2508.4,4.664]
[1748873208746,0.7722,2508.5,2508.2,1.428]
[1748873208956,10.29966475,2508.3,2508.2,5.41492289]
[1748873209274,0.7722,2508.5,2508.2,10.07678715]
[1748873209479,0.7722,2508.5,2508.2,6.089]
[1748873209671,0.03984508,2508.4,2508.2,6.087]
[1748873209972,13.15120039,2508.3,2508.1,0.02]
[1748873210124,4.02676797,2508.2,2508.1,0.02]
[1748873210326,4.84456797,2508.2,2508.1,0.02]
[1748873210517,12.84456797,2508.2,2508.1,0.02]
[1748873210733,0.7845,2508.1,2507.0,3.98878438]
[1748873210956,3.98851308,2507.2,2506.8,1.428]
[1748873211161,0.03984508,2507.2,2506.8,1.428]
[1748873211327,4.02835816,2507.2,2506.8,1.428]
[1748873211529,6.22361447,2507.2,2506.8,1.428]
[1748873211736,14.22361447,2507.2,2506.8,1.428]
[1748873211930,8.0,2507.1,2506.0,0.03989463]
[1748873212145,13.15120039,2506.9,2506.0,4.66]
[1748873212361,0.03984508,2506.8,2506.0,4.66]
[1748873212555,0.03984508,2506.8,2506.5,3.98950888]
[1748873213062,0.03984508,2506.8,2506.7,3.98930865]
[1748873213263,0.03984508,2506.9,2506.8,3.98914951]
[1748873213462,0.03984508,2507.1,2506.8,4.66]
[1748873213762,0.7816,2507.2,2506.8,4.66]
[1748873214169,13.15120039,2507.0,2506.8,3.98913609]
[1748873214466,13.15120039,2507.0,2506.9,3.98899038]
[1748873215065,0.7992,2508.0,2507.4,3.98812884]
[1748873215228,8.03984508,2507.9,2507.5,3.98802213]
[1748873215561,0.03984508,2507.9,2507.3,4.66]
[1748873215775,0.7992,2508.0,2507.4,0.03987931]
[1748873215975,0.03984508,2507.9,2507.7,3.98771664]
[1748873216165,0.03984508,2507.9,2507.8,3.98755881]
[1748873216350,0.7992,2508.0,2507.7,4.662]
[1748873216555,13.95040039,2508.0,2507.7,4.662]
[1748873216769,13.95040039,2508.0,2507.7,8.64970795]
[1748873217287,13.95040039,2508.0,2507.5,3.98796788]
[1748873217443,0.03984508,2507.9,2507.7,3.98760639]
[1748873217639,3.98756922,2507.8,2507.4,1.415]
[1748873217847,0.03984508,2507.7,2507.4,1.415]
[1748873218176,0.03984508,2507.9,2507.8,3.98755881]
[1748873218380,0.03984508,2507.9,2507.4,5.40309366]
[1748873218675,5.82499578,2507.9,2507.4,6.067]
[1748873218880,5.82499578,2507.9,2507.4,10.05517521]
[1748873219096,1.83758704,2507.9,2507.4,1.415]
[1748873219258,13.15120039,2507.6,2507.4,1.415]
[1748873219464,0.03984508,2507.5,2507.4,1.415]
[1748873220047,13.15120039,2507.6,2507.4,5.40319494]
[1748873220370,13.15120039,2507.6,2507.4,1.415]
[1748873220573,0.03984508,2507.5,2507.4,1.415]
[1748873220769,0.8174,2508.3,2507.5,0.03988268]
[1748873220975,0.8174,2508.3,2508.1,3.98701596]
[1748873221175,0.8174,2508.3,2507.5,0.03988268]
[1748873221176,0.8174,2508.8,2508.7,3.98612827]
[1748873221349,2.25610512,2508.8,2508.6,4.651]
[1748873221773,6.24217314,2508.8,2508.6,4.651]
[1748873222082,2.21626004,2508.8,2508.6,4.651]
[1748873222283,0.8174,2508.8,2508.6,4.651]
[1748873222451,0.02,2508.9,2508.7,3.98612827]
[1748873222646,0.02,2508.9,2508.2,1.415]
[1748873222847,13.15120039,2508.7,2508.2,1.415]
[1748873223087,13.15120039,2508.7,2508.3,3.9866629]
[1748873223302,0.7634,2508.4,2507.5,9.4067]
[1748873223504,13.15120039,2507.9,2506.8,0.7976]
[1748873223666,13.15120039,2507.9,2505.2,0.22072362]
[1748873223667,13.15120039,2507.5,2507.0,3.98876017]
[1748873223852,0.03984508,2507.4,2507.3,3.988354]
[1748873224057,0.03984508,2507.7,2507.4,3.98810582]
[1748873224283,0.7817,2507.8,2507.7,3.98771782]
[1748873224284,0.82154508,2507.8,2507.7,3.98771782]
[1748873224467,4.197,2508.3,2507.4,4.656]
[1748873224468,3.98711322,2508.1,2507.4,4.656]
[1748873224673,1.3167264,2508.0,2507.5,1.415]
[1748873225181,17.13860572,2507.9,2507.5,1.415]
[1748873225490,0.03984508,2507.8,2507.5,5.40294303]
[1748873225691,1.27688132,2508.0,2507.5,1.415]
[1748873225914,1.44280817,2507.9,2507.7,3.98771626]
[1748873226206,0.7817,2508.2,2508.1,3.98708185]
[1748873226357,13.15120039,2508.5,2508.3,3.98676394]
[1748873226358,0.03984508,2508.4,2508.3,3.98676394]
[1748873226559,0.02,2508.9,2508.3,1.415]
[1748873226779,0.02,2508.9,2508.4,3.986605]
[1748873227097,0.02,2508.9,2508.8,3.98596938]
[1748873227272,0.02,2508.9,2508.8,8.64296938]
[1748873227670,0.02,2508.9,2508.8,17.19296938]
[1748873228201,0.02,2508.9,2508.8,3.98596938]
[1748873228399,0.02,2508.9,2508.4,1.415]
[1748873228560,3.98608467,2508.8,2508.4,1.415]
[1748873228758,0.03984508,2508.7,2508.4,1.415]
[1748873228996,13.96220039,2508.6,2508.4,1.415]
[1748873229177,4.02633033,2508.5,2507.9,4.66]
[1748873229369,14.95005346,2508.4,2507.9,4.66]
[1748873229568,0.811,2508.6,2508.2,3.98684479]
[1748873229774,0.02,2508.9,2508.8,3.98596938]
[1748873229999,0.02,2508.9,2508.8,8.64896938]
[1748873231859,0.02,2508.9,2508.8,3.98596938]
[1748873232096,0.02,2508.9,2508.8,10.05496938]
[1748873232400,0.02,2508.9,2508.5,1.415]
[1748873232703,0.05984508,2508.9,2508.7,3.98605232]
[1748873232867,0.02,2508.9,2508.5,6.07]
[1748873233058,4.00591042,2508.9,2508.6,4.654]
[1748873233263,0.44442063,2508.8,2508.6,3.98620444]
[1748873233466,0.02,2508.9,2508.7,3.98612827]
[1748873233709,0.02,2508.9,2508.8,4.02582863]
[1748873233868,0.02,2508.9,2508.8,3.98596938]
[1748873234189,0.7742,2509.9,2509.8,3.98438122]
[1748873234402,0.02,2509.9,2509.8,4.656]
[1748873234889,1.73553561,2509.9,2509.8,8.64038122]
[1748873235095,0.02,2509.9,2509.8,8.64038122]
[1748873235278,0.02,2509.9,2509.8,16.64038122]
[1748873235882,0.02,2509.9,2509.8,8.63538122]
[1748873236502,0.02,2509.9,2509.8,9.18538122]
[1748873236800,0.02,2509.9,2509.8,17.94748122]
[1748873238614,0.02,2509.9,2509.8,13.29648122]
[1748873238928,0.02,2509.9,2509.8,19.35748122]
[1748873239619,0.02,2509.9,2509.8,19.35548122]
[1748873240913,0.02,2509.9,2509.8,19.35048122]
[1748873241720,0.02,2509.9,2509.5,1.414]
[1748873242014,0.02,2509.9,2509.8,3.98438122]
[1748873242224,0.02,2509.9,2509.5,5.3987807]
[1748873242378,0.02,2509.9,2509.7,3.98441186]
[1748873242576,0.02,2509.9,2509.6,4.641]
[1748873242912,0.02,2509.9,2509.8,3.98438122]
[1748873243118,0.02,2509.9,2509.7,3.98453862]
[1748873243282,0.02,2509.9,2509.8,3.98438122]
[1748873243677,0.7634,2509.8,2509.5,4.635]
[1748873243900,4.02438982,2509.7,2509.4,1.403]
[1748873244105,4.46350879,2509.6,2509.4,1.403]
[1748873244287,0.51862406,2509.6,2509.4,5.38791321]
[1748873244478,0.03984508,2509.6,2509.4,1.403]
[1748873245122,3.98502123,2509.4,2509.0,8.61]
[1748873245412,0.03984508,2509.6,2509.1,1.403]
[1748873245619,13.91460039,2509.3,2509.1,1.403]
[1748873245825,5.41663909,2509.2,2509.1,1.403]
[1748873246036,5.41663909,2509.2,2508.3,3.98668568]
[1748873246037,0.7634,2509.1,2508.3,3.98668568]
[1748873246320,0.7634,2509.1,2508.4,0.03986484]
[1748873246321,0.80324508,2509.1,2508.4,0.03986484]
[1748873246518,3.98608941,2508.8,2508.3,3.98670778]
[1748873246720,0.7634,2508.4,2507.9,5.39029987]
[1748873246885,0.80324508,2508.4,2508.0,8.62616888]
[1748873247085,0.80324508,2508.4,2508.0,4.639]
[1748873247384,0.80324508,2508.4,2508.1,4.637]
[1748873247582,0.80324508,2508.4,2507.9,1.403]
[1748873247780,6.58401689,2508.4,2507.9,10.02939947]
[1748873248236,0.7634,2508.4,2508.0,0.03987175]
[1748873248401,0.7634,2508.9,2508.4,3.98650778]
[1748873248602,0.80324508,2508.9,2508.5,4.642]
[1748873248800,0.7634,2508.9,2508.7,3.98612827]
[1748873248991,0.8315,2509.3,2508.8,3.98589221]
[1748873249186,0.03984508,2509.2,2508.8,3.98589221]
[1748873249387,17.13672858,2509.1,2508.5,4.641]
[1748873249708,4.0255768,2509.0,2508.5,4.641]
[1748873249890,0.8315,2509.3,2508.7,3.98605946]
[1748873250093,3.98536213,2509.2,2508.7,3.98600264]
[1748873250300,17.13694155,2509.0,2508.5,8.6274225]
[1748873250527,4.02574099,2508.9,2507.9,3.98738565]
[1748873250701,4.02574099,2508.9,2508.2,1.403]
[1748873250888,0.03984508,2508.9,2508.3,3.98674895]
[1748873251083,13.15120039,2509.0,2508.6,3.98617787]
[1748873251323,13.15120039,2509.0,2508.4,4.68186349]
[1748873251324,4.02575731,2508.9,2508.4,4.642]
[1748873251525,0.7895,2508.8,2508.4,4.642]
[1748873251683,4.02599518,2508.7,2507.7,9.4042]
[1748873252024,0.7895,2508.8,2508.6,3.98628717]
[1748873252242,0.81534508,2509.2,2509.1,3.9854928]
[1748873252435,0.7755,2509.5,2509.1,4.64]
[1748873252722,3.98468355,2509.7,2509.2,3.98533397]
[1748873252925,14.07159195,2509.7,2509.3,8.62715789]
[1748873253087,3.98479124,2509.6,2509.0,3.98549483]
[1748873253286,0.03984508,2509.5,2509.1,6.046]
[1748873253483,4.02472256,2509.5,2509.1,6.046]
[1748873253689,3.98439328,2509.8,2509.3,3.98509711]
[1748873253887,0.03984508,2509.7,2509.2,3.98533397]
[1748873254088,3.98470931,2509.6,2509.1,8.62837447]
[1748873254341,4.02446239,2509.7,2509.2,8.62732786]
[1748873254541,0.03984508,2509.7,2509.3,3.9851486]
[1748873254736,0.03984508,2509.7,2509.2,4.642]
[1748873254737,0.8149,2509.3,2508.8,1.403]
[1748873254893,0.8149,2509.3,2509.0,8.62562748]
[1748873255289,13.15120039,2509.1,2508.0,0.7853]
[1748873255522,1.35894963,2509.0,2508.3,1.403]
[1748873255827,0.03984508,2509.0,2508.6,3.9862522]
[1748873255987,0.03984508,2509.0,2508.7,4.641]
[1748873256189,0.03984508,2509.0,2508.9,3.98581051]
[1748873256389,0.8149,2509.3,2508.7,4.641]
[1748873256628,0.03984508,2509.2,2508.8,3.98595727]
[1748873256823,13.15120039,2509.1,2508.7,8.62712802]
[1748873257132,13.15120039,2509.8,2509.5,3.9847109]
[1748873257291,0.02,2509.9,2509.6,3.98469875]
[1748873257292,0.7694,2509.7,2509.6,3.98469875]
[1748873257492,0.02,2509.9,2509.7,3.98442501]
[1748873257700,0.02,2509.9,2509.8,3.98438122]
[1748873258261,0.02,2509.9,2509.8,4.57421771]
[1748873258429,0.02,2509.9,2509.8,4.57421267]
[1748873258798,0.02,2509.9,2509.8,4.53438122]
[1748873259359,0.02,2509.9,2509.8,10.06421077]
[1748873259537,0.02,2509.9,2509.8,10.02438122]
[1748873260518,0.02,2509.9,2509.8,10.57438122]
[1748873260720,0.02,2509.9,2509.8,10.79641818]
[1748873260908,0.02,2509.9,2509.8,5.60941721]
[1748873261105,0.02,2509.9,2509.8,4.20641721]
[1748873261457,0.02,2509.9,2509.6,4.637]
[1748873261755,0.05984508,2509.9,2509.4,1.403]
[1748873261954,13.15120039,2509.8,2509.5,4.635]
[1748873262256,13.15120039,2509.8,2509.5,8.61980298]
[1748873262458,13.15120039,2509.8,2509.5,4.635]
[1748873262664,0.03984508,2509.7,2509.5,4.635]
[1748873262825,13.15120039,2509.8,2509.7,3.98453998]
[1748873263163,0.02,2509.9,2509.8,3.98438122]
[1748873263398,0.02,2509.9,2509.8,4.02421671]
[1748873263517,0.02,2509.9,2509.8,4.20645045]
[1748873263721,0.02,2509.9,2509.8,4.2064499]
[1748873263951,0.02,2509.9,2509.8,3.98438122]
[1748873264511,0.02,2509.9,2509.8,4.20642501]
[1748873264740,0.02,2509.9,2509.8,10.01438122]
[1748873265377,0.02,2509.9,2509.8,5.38738122]
[1748873265661,0.02,2509.9,2509.6,4.624]
[1748873265817,0.02,2509.9,2509.8,3.98438122]
[1748873266439,0.02,2509.9,2508.9,4.53565945]
[1748873266440,0.02,2509.9,2509.3,8.608]
[1748873266655,13.21104547,2509.9,2509.3,13.229]
[1748873266828,1.40196455,2509.8,2509.3,13.229]
[1748873267029,13.17120039,2509.9,2509.7,3.98453998]
[1748873267572,0.02,2509.9,2509.8,3.98438122]
[1748873268873,0.02,2509.9,2509.3,9.4413]
[1748873269024,0.02,2509.9,2509.8,5.38738122]
[1748873269232,0.02,2509.9,2509.8,10.00138122]
[1748873269965,0.02,2509.9,2509.8,5.38738122]
[1748873270128,0.02,2509.9,2509.8,10.00438122]
[1748873271362,0.02,2509.9,2509.8,19.38598122]
[1748873271562,0.02,2510.9,2510.8,3.98279432]
[1748873271867,0.02,2510.9,2510.8,10.00279432]
[1748873274166,0.02,2510.9,2510.8,18.55279432]
[1748873274366,0.02,2510.9,2510.8,19.30589432]
[1748873274569,0.63118448,2511.8,2511.7,12.7344672]
[1748873274795,0.63118448,2511.8,2511.7,18.7424672]
[1748873274952,0.63118448,2511.8,2511.7,19.2924672]
[1748873275152,0.63118448,2511.8,2511.7,13.2844672]
[1748873275455,0.63118448,2511.8,2511.7,14.34549744]
[1748873275636,0.63118448,2511.8,2511.7,18.96350763]
[1748873275859,0.63118448,2511.8,2511.7,18.7414672]
[1748873276049,0.63118448,2511.8,2511.7,18.9635106]
[1748873276255,0.63118448,2511.8,2511.7,18.7374672]
[1748873276449,0.63118448,2511.8,2511.7,19.2874672]
[1748873276755,0.63118448,2511.8,2511.7,18.7374672]
[1748873277091,0.63118448,2511.8,2511.7,18.95948957]
[1748873277265,0.63118448,2511.8,2511.7,18.95871956]
[1748873277461,0.63118448,2511.8,2511.7,18.7374672]
[1748873278267,0.63118448,2511.8,2511.7,18.95876256]
[1748873278464,0.63118448,2511.8,2511.7,18.95880157]
[1748873278687,0.63118448,2511.8,2511.7,18.95880159]
[1748873278879,0.63118448,2511.8,2511.7,18.7374672]
[1748873279053,0.63118448,2511.8,2511.7,18.95879867]
[1748873279383,0.63118448,2511.8,2511.7,19.50876556]
[1748873279586,0.63118448,2511.8,2511.7,19.50875903]
[1748873279787,0.63118448,2511.8,2511.7,19.2874672]
[1748873280545,1.26223309,2512.6,2512.3,0.55]
[1748873280826,0.02,2512.9,2512.6,8.0]
[1748873280994,0.02,2512.9,2512.8,13.03422432]
[1748873281200,1.57779136,2513.0,2512.9,12.52946595]
[1748873281428,0.39045742,2514.2,2513.8,11.97804121]
[1748873281597,0.39045742,2514.2,2513.8,26.57104121]
[1748873281794,0.39045742,2514.2,2513.8,28.328288]
[1748873282194,0.39045742,2514.2,2513.8,22.334288]
[1748873282419,0.39045742,2514.2,2513.8,28.329288]
[1748873282709,0.39045742,2514.2,2513.8,27.40544121]
[1748873283253,0.39045742,2514.2,2513.8,27.40344121]
[1748873283659,0.39045742,2514.2,2513.8,21.95944121]
[1748873283970,0.39045742,2514.2,2513.8,21.96504121]
[1748873284198,0.39045742,2514.2,2513.8,26.57104121]
[1748873284367,0.39045742,2514.2,2513.8,21.96504121]
[1748873284566,0.39045742,2514.2,2513.8,26.56904121]
[1748873286112,0.39045742,2514.2,2513.8,27.11904121]
[1748873286343,0.39045742,2514.2,2513.8,21.87884121]
[1748873286480,0.39045742,2514.2,2513.8,28.24202405]
[1748873286675,0.01891146,2513.9,2513.8,28.24202405]
[1748873286901,0.39045742,2514.2,2514.1,5.31776652]
[1748873287144,0.02,2514.9,2514.8,13.31665936]
[1748873287412,0.02,2514.9,2514.8,19.90109219]
[1748873287568,0.02,2514.9,2514.8,13.68943616]
[1748873287900,0.02,2514.9,2514.8,17.96445936]
[1748873290004,0.02,2514.9,2514.8,17.96045936]
[1748873290525,0.02,2514.9,2514.8,18.51045936]
[1748873290723,0.02,2514.9,2514.8,19.67576248]
[1748873290890,0.02,2514.9,2514.8,19.30445936]
[1748873291095,0.02,2514.9,2514.8,12.77045936]
[1748873291285,0.02,2514.9,2514.8,18.75145936]
[1748873291686,0.02,2514.9,2514.8,12.77045936]
[1748873291895,0.02,2514.9,2514.8,18.75245936]
[1748873292202,0.02,2514.9,2514.8,19.30245936]
[1748873293811,0.02,2514.9,2514.8,19.67363947]
[1748873294120,8.31285445,2515.1,2515.0,13.31974314]
[1748873294121,8.28272703,2515.1,2515.0,13.31974314]
[1748873294278,8.26293624,2515.1,2515.0,13.69092325]